[Event "Titled Tuesday Blitz February 14 Early 2023"]
[White "Zahid, Sanatan"]
[Black "Urazayev, Arystanbek"]
[WhiteFideId "10201963"]
[BlackFideId "13709810"]
[WhiteElo "1930"]
[BlackElo "2460"]
[Result "0-1"]
[Round "09"]
[TimeControl "180+2"]
[Date "2023.02.14"]
[WhiteClock "0:00:11"]
[BlackClock "0:00:18"]

1. d4 {[%clk 0:02:54]}  Nf6 {[%clk 0:02:59]} 2. Nc3 {[%clk 0:02:46]}  d5 {[%clk 0:02:59]} 3. Bf4 {[%clk 0:02:45]}  e6 {[%clk 0:02:59]} 4. Nb5 {[%clk 0:02:45]}  Bb4+ {[%clk 0:03:00]} 5. c3 {[%clk 0:02:45]}  Ba5 {[%clk 0:03:00]} 6. a4 {[%clk 0:02:46]}  a6 {[%clk 0:02:58]} 7. Na3 {[%clk 0:02:46]}  c6 {[%clk 0:02:57]} 8. e3 {[%clk 0:02:46]}  Bc7 {[%clk 0:02:57]} 9. Nf3 {[%clk 0:02:46]}  O-O {[%clk 0:02:57]} 10. Bd3 {[%clk 0:02:46]}  Nbd7 {[%clk 0:02:57]} 11. O-O {[%clk 0:02:46]}  b6 {[%clk 0:02:50]} 12. Bg3 {[%clk 0:02:45]}  Bb7 {[%clk 0:02:49]} 13. Re1 {[%clk 0:02:35]}  c5 {[%clk 0:02:50]} 14. Ne5 {[%clk 0:02:31]}  Nxe5 {[%clk 0:02:44]} 15. dxe5 {[%clk 0:02:32]}  Ne4 {[%clk 0:02:44]} 16. Bxe4 {[%clk 0:02:28]}  dxe4 {[%clk 0:02:44]} 17. Qg4 {[%clk 0:02:25]}  Qe7 {[%clk 0:02:28]} 18. Rad1 {[%clk 0:02:18]}  Qe8 {[%clk 0:01:57]} 19. Nc4 {[%clk 0:02:14]}  Qxa4 {[%clk 0:01:55]} 20. Nd6 {[%clk 0:02:08]}  Bc6 {[%clk 0:01:40]} 21. Bh4 {[%clk 0:02:03]}  Bxd6 {[%clk 0:01:26]} 22. Bf6 {[%clk 0:01:57]}  g6 {[%clk 0:01:27]} 23. Rxd6 {[%clk 0:01:53]}  h5 {[%clk 0:01:21]} 24. Qg5 {[%clk 0:01:43]}  Kh7 {[%clk 0:01:21]} 25. h4 {[%clk 0:01:30]}  Bb5 {[%clk 0:01:04]} 26. g4 {[%clk 0:01:26]}  Rg8 {[%clk 0:01:04]} 27. Kh2 {[%clk 0:01:26]}  Qc2 {[%clk 0:01:04]} 28. Kg3 {[%clk 0:01:26]}  Be2 {[%clk 0:01:03]} 29. Rd7 {[%clk 0:01:22]}  Raf8 {[%clk 0:01:03]} 30. Be7 {[%clk 0:00:57]}  Bxg4 {[%clk 0:00:54]} 31. Qf6 {[%clk 0:00:55]}  Qa4 {[%clk 0:00:53]} 32. Rc7 {[%clk 0:00:51]}  Qe8 {[%clk 0:00:51]} 33. Kf4 {[%clk 0:00:50]}  g5+ {[%clk 0:00:49]} 34. hxg5 {[%clk 0:00:47]}  Rg6 {[%clk 0:00:50]} 35. Qxg6+ {[%clk 0:00:42]}  Kxg6 {[%clk 0:00:47]} 36. c4 {[%clk 0:00:36]}  Rg8 {[%clk 0:00:47]} 37. Ra1 {[%clk 0:00:35]}  a5 {[%clk 0:00:48]} 38. Bf6 {[%clk 0:00:34]}  Bf5 {[%clk 0:00:40]} 39. b3 {[%clk 0:00:30]}  h4 {[%clk 0:00:34]} 40. Rh1 {[%clk 0:00:30]}  h3 {[%clk 0:00:34]} 41. f3 {[%clk 0:00:31]}  exf3 {[%clk 0:00:32]} 42. e4 {[%clk 0:00:30]}  Bxe4 {[%clk 0:00:23]} 43. Rxh3 {[%clk 0:00:29]}  Qf8 {[%clk 0:00:20]} 44. Kxe4 {[%clk 0:00:21]}  f2 {[%clk 0:00:20]} 45. Rf3 {[%clk 0:00:13]}  Qa8+ {[%clk 0:00:20]} 46. Ke3 {[%clk 0:00:13]}  Qxf3+ {[%clk 0:00:21]} 47. Kxf3 {[%clk 0:00:14]}  f1=Q+ {[%clk 0:00:22]} 48. Ke3 {[%clk 0:00:14]}  Qd1 {[%clk 0:00:19]} 49. Kf4 {[%clk 0:00:13]}  Qxb3 {[%clk 0:00:18]} 50. Kg4 {[%clk 0:00:11]}  Qxc4+ {[%clk 0:00:18]} 51. Kg3 {[%clk 0:00:11]}  a4 {[%clk 0:00:19]} 52. Rc8 {[%clk 0:00:11]}  Rxc8 {[%clk 0:00:18]} 0-1


[Site "https://www.chess.com"]

[Event "Titled Tuesday Blitz February 14 Early 2023"]
[White "Ibarra Jerez, Jose Carlos"]
[Black "Erdogdu, Mert"]
[WhiteFideId "2226332"]
[BlackFideId "6301495"]
[WhiteElo "2563"]
[BlackElo "2413"]
[Result "1-0"]
[Round "09"]
[TimeControl "180+2"]
[Date "2023.02.14"]
[WhiteClock "0:01:07"]
[BlackClock "0:00:36"]

1. e4 {[%clk 0:02:59]}  c5 {[%clk 0:03:00]} 2. Nf3 {[%clk 0:02:57]}  d6 {[%clk 0:03:00]} 3. c3 {[%clk 0:02:53]}  Nf6 {[%clk 0:03:01]} 4. Bd3 {[%clk 0:02:53]}  Nc6 {[%clk 0:03:00]} 5. h3 {[%clk 0:02:53]}  d5 {[%clk 0:02:59]} 6. e5 {[%clk 0:02:50]}  Nd7 {[%clk 0:03:00]} 7. Bb5 {[%clk 0:02:50]}  e6 {[%clk 0:02:59]} 8. Bxc6 {[%clk 0:02:44]}  bxc6 {[%clk 0:02:59]} 9. d3 {[%clk 0:02:44]}  Qc7 {[%clk 0:02:57]} 10. Qe2 {[%clk 0:02:43]}  a5 {[%clk 0:02:51]} 11. c4 {[%clk 0:02:41]}  a4 {[%clk 0:02:49]} 12. O-O {[%clk 0:02:39]}  Be7 {[%clk 0:02:48]} 13. Nc3 {[%clk 0:02:39]}  a3 {[%clk 0:02:48]} 14. b3 {[%clk 0:02:39]}  O-O {[%clk 0:02:44]} 15. Na4 {[%clk 0:02:34]}  f6 {[%clk 0:02:34]} 16. exf6 {[%clk 0:02:26]}  Bxf6 {[%clk 0:02:35]} 17. Rb1 {[%clk 0:02:21]}  Ne5 {[%clk 0:02:22]} 18. Nxe5 {[%clk 0:02:10]}  Bxe5 {[%clk 0:02:21]} 19. Bxa3 {[%clk 0:02:07]}  Rxa4 {[%clk 0:01:22]} 20. bxa4 {[%clk 0:02:06]}  Bd6 {[%clk 0:01:21]} 21. Qc2 {[%clk 0:01:55]}  d4 {[%clk 0:01:18]} 22. Qb3 {[%clk 0:01:45]}  e5 {[%clk 0:01:06]} 23. Qb6 {[%clk 0:01:42]}  Qe7 {[%clk 0:01:06]} 24. Qxc6 {[%clk 0:01:39]}  Bd7 {[%clk 0:01:06]} 25. Qb7 {[%clk 0:01:21]}  Qe6 {[%clk 0:00:52]} 26. Rb6 {[%clk 0:01:13]}  Rb8 {[%clk 0:00:40]} 27. Qxb8+ {[%clk 0:01:05]}  Bxb8 {[%clk 0:00:40]} 28. Rxe6 {[%clk 0:01:06]}  Bxe6 {[%clk 0:00:36]} 29. Bxc5 {[%clk 0:01:07]} 1-0


[Site "https://www.chess.com"]

[Event "Titled Tuesday Blitz February 14 Early 2023"]
[White "Piesik, Piotr"]
[Black "Remizov, Yaroslav"]
[WhiteFideId "1136194"]
[BlackFideId "34134015"]
[WhiteElo "2426"]
[BlackElo "2421"]
[Result "0-1"]
[Round "09"]
[TimeControl "180+2"]
[Date "2023.02.14"]
[WhiteClock "0:00:01"]
[BlackClock "0:00:04"]

1. Nf3 {[%clk 0:02:25]}  d5 {[%clk 0:02:58]} 2. g3 {[%clk 0:02:25]}  Nf6 {[%clk 0:02:57]} 3. Bg2 {[%clk 0:02:26]}  Bg4 {[%clk 0:02:58]} 4. O-O {[%clk 0:02:27]}  Nbd7 {[%clk 0:02:58]} 5. d3 {[%clk 0:02:27]}  e5 {[%clk 0:02:56]} 6. Nbd2 {[%clk 0:02:28]}  Be7 {[%clk 0:02:56]} 7. e4 {[%clk 0:02:28]}  dxe4 {[%clk 0:02:56]} 8. dxe4 {[%clk 0:02:28]}  O-O {[%clk 0:02:56]} 9. h3 {[%clk 0:02:29]}  Bxf3 {[%clk 0:02:55]} 10. Qxf3 {[%clk 0:02:30]}  c6 {[%clk 0:02:53]} 11. a4 {[%clk 0:02:30]}  Qc7 {[%clk 0:02:53]} 12. Nc4 {[%clk 0:02:28]}  Rfd8 {[%clk 0:02:44]} 13. Bg5 {[%clk 0:02:27]}  h6 {[%clk 0:02:41]} 14. Be3 {[%clk 0:02:26]}  b5 {[%clk 0:02:40]} 15. Nd2 {[%clk 0:02:24]}  Bc5 {[%clk 0:02:33]} 16. Nb3 {[%clk 0:02:22]}  Bxe3 {[%clk 0:02:29]} 17. Qxe3 {[%clk 0:02:23]}  Nb6 {[%clk 0:02:21]} 18. a5 {[%clk 0:02:18]}  Nc4 {[%clk 0:02:17]} 19. Qc3 {[%clk 0:02:18]}  Rd6 {[%clk 0:02:00]} 20. Rfd1 {[%clk 0:02:17]}  Rad8 {[%clk 0:02:00]} 21. Rd3 {[%clk 0:02:14]}  Nd7 {[%clk 0:01:40]} 22. Rad1 {[%clk 0:02:08]}  Nf8 {[%clk 0:01:39]} 23. Bf1 {[%clk 0:02:02]}  Ng6 {[%clk 0:01:10]} 24. Rxd6 {[%clk 0:01:58]}  Rxd6 {[%clk 0:01:11]} 25. Rxd6 {[%clk 0:01:54]}  Nxd6 {[%clk 0:01:12]} 26. Bd3 {[%clk 0:01:51]}  a6 {[%clk 0:01:05]} 27. Nc5 {[%clk 0:01:47]}  Qa7 {[%clk 0:00:55]} 28. b4 {[%clk 0:01:30]}  Nb7 {[%clk 0:00:51]} 29. Nd7 {[%clk 0:01:25]}  Nd8 {[%clk 0:00:49]} 30. Nxe5 {[%clk 0:01:22]}  Nxe5 {[%clk 0:00:47]} 31. Qxe5 {[%clk 0:01:23]}  Ne6 {[%clk 0:00:48]} 32. c3 {[%clk 0:01:15]}  Qd7 {[%clk 0:00:45]} 33. Be2 {[%clk 0:01:11]}  Qd2 {[%clk 0:00:30]} 34. Bg4 {[%clk 0:01:11]}  Nf8 {[%clk 0:00:30]} 35. Qd4 {[%clk 0:01:03]}  Qe1+ {[%clk 0:00:20]} 36. Kg2 {[%clk 0:01:03]}  Ne6 {[%clk 0:00:19]} 37. Bxe6 {[%clk 0:01:03]}  fxe6 {[%clk 0:00:20]} 38. Qe5 {[%clk 0:00:58]}  Kh7 {[%clk 0:00:14]} 39. h4 {[%clk 0:00:53]}  Qd2 {[%clk 0:00:08]} 40. Qxe6 {[%clk 0:00:47]}  Qxc3 {[%clk 0:00:08]} 41. Qd6 {[%clk 0:00:46]}  Qc4 {[%clk 0:00:02]} 42. Qe7 {[%clk 0:00:41]}  Qd3 {[%clk 0:00:02]} 43. h5 {[%clk 0:00:40]}  Qc4 {[%clk 0:00:02]} 44. Kg1 {[%clk 0:00:30]}  Qc1+ {[%clk 0:00:02]} 45. Kh2 {[%clk 0:00:30]}  Qc2 {[%clk 0:00:03]} 46. Kg1 {[%clk 0:00:28]}  Qc1+ {[%clk 0:00:03]} 47. Kg2 {[%clk 0:00:29]}  Qc4 {[%clk 0:00:03]} 48. g4 {[%clk 0:00:26]}  Qe2 {[%clk 0:00:03]} 49. Qe6 {[%clk 0:00:25]}  c5 {[%clk 0:00:03]} 50. Qf5+ {[%clk 0:00:24]}  Kh8 {[%clk 0:00:03]} 51. bxc5 {[%clk 0:00:22]}  Qc2 {[%clk 0:00:03]} 52. g5 {[%clk 0:00:18]}  hxg5 {[%clk 0:00:03]} 53. Kg3 {[%clk 0:00:14]}  b4 {[%clk 0:00:04]} 54. Qf8+ {[%clk 0:00:12]}  Kh7 {[%clk 0:00:04]} 55. Qf5+ {[%clk 0:00:12]}  Kh8 {[%clk 0:00:04]} 56. Qf8+ {[%clk 0:00:08]}  Kh7 {[%clk 0:00:04]} 57. Qe7 {[%clk 0:00:06]}  b3 {[%clk 0:00:04]} 58. c6 {[%clk 0:00:05]}  Qxc6 {[%clk 0:00:04]} 59. Qxg5 {[%clk 0:00:01]}  b2 {[%clk 0:00:04]} 60. Qf5+ {[%clk 0:00:01]}  Kg8 {[%clk 0:00:04]} 0-1


[Site "https://www.chess.com"]

[Event "Titled Tuesday Blitz February 14 Early 2023"]
[White "Mendonca, Leon Luke"]
[Black "Robledo, Cristian"]
[WhiteFideId "35028561"]
[BlackFideId "133450"]
[WhiteElo "2603"]
[BlackElo "2270"]
[Result "1-0"]
[Round "09"]
[TimeControl "180+2"]
[Date "2023.02.14"]
[WhiteClock "0:00:50"]
[BlackClock "0:00:01"]

1. Nf3 {[%clk 0:03:00]}  Nf6 {[%clk 0:02:56]} 2. c4 {[%clk 0:03:00]}  e6 {[%clk 0:02:56]} 3. b3 {[%clk 0:03:00]}  d5 {[%clk 0:02:56]} 4. Bb2 {[%clk 0:03:01]}  c6 {[%clk 0:02:57]} 5. e3 {[%clk 0:02:58]}  Nbd7 {[%clk 0:02:56]} 6. Nc3 {[%clk 0:02:58]}  Be7 {[%clk 0:02:56]} 7. d4 {[%clk 0:02:56]}  O-O {[%clk 0:02:56]} 8. Bd3 {[%clk 0:02:56]}  b6 {[%clk 0:02:52]} 9. O-O {[%clk 0:02:56]}  Bb7 {[%clk 0:02:52]} 10. Qe2 {[%clk 0:02:48]}  c5 {[%clk 0:02:52]} 11. cxd5 {[%clk 0:02:48]}  exd5 {[%clk 0:02:50]} 12. Rfd1 {[%clk 0:02:43]}  Re8 {[%clk 0:02:48]} 13. Rac1 {[%clk 0:02:42]}  Bf8 {[%clk 0:02:27]} 14. Ba6 {[%clk 0:02:20]}  Qc8 {[%clk 0:02:25]} 15. Bb5 {[%clk 0:02:00]}  a6 {[%clk 0:02:23]} 16. Bxd7 {[%clk 0:01:55]}  Qxd7 {[%clk 0:02:21]} 17. Na4 {[%clk 0:01:54]}  Qb5 {[%clk 0:02:12]} 18. Qc2 {[%clk 0:01:34]}  Rac8 {[%clk 0:02:06]} 19. dxc5 {[%clk 0:01:35]}  bxc5 {[%clk 0:02:04]} 20. Bxf6 {[%clk 0:01:35]}  gxf6 {[%clk 0:02:00]} 21. Qf5 {[%clk 0:01:34]}  Bg7 {[%clk 0:00:56]} 22. Nc3 {[%clk 0:01:32]}  Qa5 {[%clk 0:00:52]} 23. Nxd5 {[%clk 0:01:30]}  Bxd5 {[%clk 0:00:52]} 24. Qxd5 {[%clk 0:01:28]}  Qxa2 {[%clk 0:00:51]} 25. Ra1 {[%clk 0:01:25]}  Qc2 {[%clk 0:00:41]} 26. Rxa6 {[%clk 0:01:20]}  Rcd8 {[%clk 0:00:22]} 27. Qxd8 {[%clk 0:01:12]}  Rxd8 {[%clk 0:00:23]} 28. Rxd8+ {[%clk 0:01:12]}  Bf8 {[%clk 0:00:24]} 29. g3 {[%clk 0:00:53]}  Kg7 {[%clk 0:00:14]} 30. Rb6 {[%clk 0:00:52]}  Qb1+ {[%clk 0:00:10]} 31. Kg2 {[%clk 0:00:52]}  Qe4 {[%clk 0:00:11]} 32. Rd7 {[%clk 0:00:50]}  Be7 {[%clk 0:00:07]} 33. Rbb7 {[%clk 0:00:50]}  Bf8 {[%clk 0:00:01]} 34. Rxf7+ {[%clk 0:00:50]} 1-0


[Site "https://www.chess.com"]

[Event "Titled Tuesday Blitz February 14 Early 2023"]
[White "Kamsky, Gata"]
[Black "Domingo Nunez, Ruben"]
[WhiteFideId "2000024"]
[BlackFideId "22245570"]
[WhiteElo "2665"]
[BlackElo "2416"]
[Result "1/2-1/2"]
[Round "09"]
[TimeControl "180+2"]
[Date "2023.02.14"]
[WhiteClock "0:00:04"]
[BlackClock "0:00:07"]

1. e4 {[%clk 0:03:00]}  Nf6 {[%clk 0:02:47]} 2. e5 {[%clk 0:02:58]}  Nd5 {[%clk 0:02:48]} 3. d4 {[%clk 0:02:57]}  d6 {[%clk 0:02:48]} 4. Nf3 {[%clk 0:02:57]}  c6 {[%clk 0:02:48]} 5. h3 {[%clk 0:02:52]}  Bf5 {[%clk 0:02:47]} 6. Bd3 {[%clk 0:02:46]}  Bxd3 {[%clk 0:02:37]} 7. Qxd3 {[%clk 0:02:45]}  dxe5 {[%clk 0:02:37]} 8. Nxe5 {[%clk 0:02:45]}  Nd7 {[%clk 0:02:37]} 9. Nf3 {[%clk 0:02:45]}  g6 {[%clk 0:02:33]} 10. O-O {[%clk 0:02:43]}  Bg7 {[%clk 0:02:31]} 11. Re1 {[%clk 0:02:42]}  O-O {[%clk 0:02:31]} 12. c4 {[%clk 0:02:42]}  Nc7 {[%clk 0:02:26]} 13. Nc3 {[%clk 0:02:37]}  Ne6 {[%clk 0:02:09]} 14. Be3 {[%clk 0:02:21]}  Qa5 {[%clk 0:02:02]} 15. a3 {[%clk 0:02:13]}  Rfd8 {[%clk 0:02:00]} 16. b4 {[%clk 0:02:12]}  Qh5 {[%clk 0:02:00]} 17. Rad1 {[%clk 0:02:09]}  Ne5 {[%clk 0:01:27]} 18. Nxe5 {[%clk 0:02:07]}  Bxe5 {[%clk 0:01:28]} 19. Qe4 {[%clk 0:02:02]}  Bf6 {[%clk 0:01:23]} 20. Ne2 {[%clk 0:01:55]}  Qf5 {[%clk 0:01:04]} 21. f3 {[%clk 0:01:03]}  a5 {[%clk 0:01:02]} 22. d5 {[%clk 0:00:59]}  cxd5 {[%clk 0:00:23]} 23. cxd5 {[%clk 0:00:57]}  Nc7 {[%clk 0:00:19]} 24. Bb6 {[%clk 0:00:54]}  Rd7 {[%clk 0:00:18]} 25. d6 {[%clk 0:00:45]}  Qxe4 {[%clk 0:00:14]} 26. fxe4 {[%clk 0:00:44]}  exd6 {[%clk 0:00:15]} 27. bxa5 {[%clk 0:00:40]}  Ra6 {[%clk 0:00:11]} 28. Nf4 {[%clk 0:00:38]}  Na8 {[%clk 0:00:10]} 29. Nd5 {[%clk 0:00:33]}  Bd8 {[%clk 0:00:11]} 30. e5 {[%clk 0:00:28]}  Kg7 {[%clk 0:00:10]} 31. Bd4 {[%clk 0:00:22]}  dxe5 {[%clk 0:00:10]} 32. Bxe5+ {[%clk 0:00:22]}  f6 {[%clk 0:00:11]} 33. Nb4 {[%clk 0:00:13]}  Rxd1 {[%clk 0:00:12]} 34. Rxd1 {[%clk 0:00:13]}  Rxa5 {[%clk 0:00:11]} 35. Rd7+ {[%clk 0:00:12]}  Kh6 {[%clk 0:00:08]} 36. Bd6 {[%clk 0:00:12]}  Bb6+ {[%clk 0:00:06]} 37. Kh2 {[%clk 0:00:12]}  Bc5 {[%clk 0:00:03]} 38. Bxc5 {[%clk 0:00:09]}  Rxc5 {[%clk 0:00:04]} 39. Rxb7 {[%clk 0:00:09]}  Ra5 {[%clk 0:00:05]} 40. Nc6 {[%clk 0:00:08]}  Rxa3 {[%clk 0:00:05]} 41. Ne7 {[%clk 0:00:09]}  f5 {[%clk 0:00:03]} 42. Ng8+ {[%clk 0:00:08]}  Kg5 {[%clk 0:00:03]} 43. Rxh7 {[%clk 0:00:08]}  Nb6 {[%clk 0:00:03]} 44. h4+ {[%clk 0:00:08]}  Kf4 {[%clk 0:00:04]} 45. Ne7 {[%clk 0:00:08]}  Nc4 {[%clk 0:00:03]} 46. Nxg6+ {[%clk 0:00:08]}  Kg4 {[%clk 0:00:04]} 47. Rg7 {[%clk 0:00:07]}  Kh5 {[%clk 0:00:02]} 48. Ne7 {[%clk 0:00:06]}  Ne3 {[%clk 0:00:02]} 49. Nxf5 {[%clk 0:00:05]}  Nxf5 {[%clk 0:00:01]} 50. Rg5+ {[%clk 0:00:05]}  Kxh4 {[%clk 0:00:02]} 51. Rxf5 {[%clk 0:00:06]}  Rb3 {[%clk 0:00:03]} 52. Rf8 {[%clk 0:00:05]}  Kg5 {[%clk 0:00:03]} 53. Rg8+ {[%clk 0:00:05]}  Kh4 {[%clk 0:00:04]} 54. Rg7 {[%clk 0:00:04]}  Kh5 {[%clk 0:00:04]} 55. Rg3 {[%clk 0:00:04]}  Rb1 {[%clk 0:00:04]} 56. Rh3+ {[%clk 0:00:03]}  Kg4 {[%clk 0:00:04]} 57. Rf3 {[%clk 0:00:03]}  Kh4 {[%clk 0:00:05]} 58. Rh3+ {[%clk 0:00:03]}  Kg4 {[%clk 0:00:05]} 59. Rg3+ {[%clk 0:00:04]}  Kh4 {[%clk 0:00:06]} 60. Rf3 {[%clk 0:00:04]}  Kg4 {[%clk 0:00:06]} 61. Rg3+ {[%clk 0:00:04]}  Kh4 {[%clk 0:00:07]} 62. Rh3+ {[%clk 0:00:04]}  Kg4 {[%clk 0:00:07]} 1/2-1/2


[Site "https://www.chess.com"]

[Event "Titled Tuesday Blitz February 14 Early 2023"]
[White "Avinash, Ramesh"]
[Black "Mohamed Anees M"]
[WhiteFideId "45018340"]
[BlackFideId "35065815"]
[WhiteElo "2319"]
[BlackElo "2315"]
[Result "1-0"]
[Round "09"]
[TimeControl "180+2"]
[Date "2023.02.14"]
[WhiteClock "0:01:32"]
[BlackClock "0:00:57"]

1. d4 {[%clk 0:03:00]}  d5 {[%clk 0:03:00]} 2. c4 {[%clk 0:02:59]}  c6 {[%clk 0:03:00]} 3. cxd5 {[%clk 0:03:00]}  cxd5 {[%clk 0:03:00]} 4. Nc3 {[%clk 0:03:01]}  Nf6 {[%clk 0:03:00]} 5. Nf3 {[%clk 0:03:00]}  Nc6 {[%clk 0:03:00]} 6. Bf4 {[%clk 0:03:00]}  a6 {[%clk 0:03:00]} 7. Ne5 {[%clk 0:02:59]}  Bf5 {[%clk 0:02:57]} 8. e3 {[%clk 0:02:59]}  e6 {[%clk 0:02:54]} 9. Bd3 {[%clk 0:02:51]}  Bxd3 {[%clk 0:02:50]} 10. Nxd3 {[%clk 0:02:51]}  Bd6 {[%clk 0:02:48]} 11. Bxd6 {[%clk 0:02:48]}  Qxd6 {[%clk 0:02:48]} 12. O-O {[%clk 0:02:49]}  O-O {[%clk 0:02:48]} 13. Rc1 {[%clk 0:02:43]}  Rac8 {[%clk 0:02:41]} 14. Na4 {[%clk 0:02:42]}  e5 {[%clk 0:02:36]} 15. dxe5 {[%clk 0:02:38]}  Nxe5 {[%clk 0:02:37]} 16. Nxe5 {[%clk 0:02:39]}  Qxe5 {[%clk 0:02:37]} 17. Nc3 {[%clk 0:02:37]}  Rfd8 {[%clk 0:02:30]} 18. Rc2 {[%clk 0:02:28]}  d4 {[%clk 0:02:29]} 19. Rd2 {[%clk 0:02:28]}  Rc4 {[%clk 0:02:22]} 20. Ne2 {[%clk 0:02:23]}  Ng4 {[%clk 0:02:20]} 21. Ng3 {[%clk 0:02:23]}  Nf6 {[%clk 0:02:05]} 22. Re1 {[%clk 0:02:22]}  Qd5 {[%clk 0:01:58]} 23. b3 {[%clk 0:02:16]}  Rcc8 {[%clk 0:01:26]} 24. Rxd4 {[%clk 0:02:16]}  Qa5 {[%clk 0:01:26]} 25. Rxd8+ {[%clk 0:02:16]}  Rxd8 {[%clk 0:01:26]} 26. Qb1 {[%clk 0:02:17]}  Rd2 {[%clk 0:01:23]} 27. Re2 {[%clk 0:02:18]}  h5 {[%clk 0:01:18]} 28. Rxd2 {[%clk 0:02:17]}  Qxd2 {[%clk 0:01:18]} 29. Nf1 {[%clk 0:02:15]}  Qe2 {[%clk 0:01:18]} 30. Ng3 {[%clk 0:02:12]}  Qd2 {[%clk 0:01:17]} 31. h3 {[%clk 0:02:12]}  g6 {[%clk 0:01:13]} 32. Nf1 {[%clk 0:02:12]}  Qc3 {[%clk 0:01:09]} 33. Qd1 {[%clk 0:02:11]}  Kg7 {[%clk 0:01:08]} 34. Qd2 {[%clk 0:02:10]}  Qa1 {[%clk 0:01:05]} 35. a4 {[%clk 0:02:07]}  b5 {[%clk 0:01:00]} 36. axb5 {[%clk 0:02:06]}  axb5 {[%clk 0:01:00]} 37. Qd4 {[%clk 0:02:01]}  Qb1 {[%clk 0:01:00]} 38. g4 {[%clk 0:01:58]}  hxg4 {[%clk 0:00:58]} 39. hxg4 {[%clk 0:01:58]}  g5 {[%clk 0:00:58]} 40. b4 {[%clk 0:01:32]}  Qd1 {[%clk 0:00:57]} 41. Qxd1 {[%clk 0:01:32]} 1-0


[Site "https://www.chess.com"]

[Event "Titled Tuesday Blitz February 14 Early 2023"]
[White "Rustemov, Alexander"]
[Black "Florescu, Codrut-Constantin"]
[WhiteFideId "4119002"]
[BlackFideId "1202200"]
[WhiteElo "2525"]
[BlackElo "2259"]
[Result "1-0"]
[Round "09"]
[TimeControl "180+2"]
[Date "2023.02.14"]
[WhiteClock "0:01:41"]
[BlackClock "0:01:17"]

1. d4 {[%clk 0:02:57]}  Nf6 {[%clk 0:02:59]} 2. Bg5 {[%clk 0:02:56]}  g6 {[%clk 0:02:59]} 3. Nd2 {[%clk 0:02:53]}  d5 {[%clk 0:02:57]} 4. e3 {[%clk 0:02:52]}  Bg7 {[%clk 0:02:56]} 5. h3 {[%clk 0:02:47]}  O-O {[%clk 0:02:55]} 6. Ngf3 {[%clk 0:02:47]}  c5 {[%clk 0:02:52]} 7. c3 {[%clk 0:02:47]}  b6 {[%clk 0:02:52]} 8. Be2 {[%clk 0:02:43]}  Bb7 {[%clk 0:02:49]} 9. O-O {[%clk 0:02:43]}  Nbd7 {[%clk 0:02:49]} 10. Bf4 {[%clk 0:02:41]}  Re8 {[%clk 0:02:47]} 11. Bh2 {[%clk 0:02:37]}  e6 {[%clk 0:02:38]} 12. a4 {[%clk 0:02:36]}  a6 {[%clk 0:02:37]} 13. Re1 {[%clk 0:02:34]}  h6 {[%clk 0:02:25]} 14. Bd3 {[%clk 0:02:32]}  Ne4 {[%clk 0:02:21]} 15. Qc2 {[%clk 0:02:25]}  Nxd2 {[%clk 0:02:08]} 16. Qxd2 {[%clk 0:02:24]}  e5 {[%clk 0:02:07]} 17. Nxe5 {[%clk 0:02:18]}  Nxe5 {[%clk 0:02:07]} 18. dxe5 {[%clk 0:02:17]}  Bxe5 {[%clk 0:02:07]} 19. Bxe5 {[%clk 0:02:15]}  Rxe5 {[%clk 0:02:07]} 20. Be2 {[%clk 0:02:13]}  Qc7 {[%clk 0:02:05]} 21. Bf3 {[%clk 0:02:12]}  Kg7 {[%clk 0:01:58]} 22. b4 {[%clk 0:02:09]}  a5 {[%clk 0:01:55]} 23. Qb2 {[%clk 0:01:58]}  Kh7 {[%clk 0:01:47]} 24. Red1 {[%clk 0:01:56]}  Rd8 {[%clk 0:01:39]} 25. Rd2 {[%clk 0:01:51]}  Bc6 {[%clk 0:01:30]} 26. b5 {[%clk 0:01:45]}  Bb7 {[%clk 0:01:25]} 27. Rad1 {[%clk 0:01:46]}  Ree8 {[%clk 0:01:25]} 28. Bxd5 {[%clk 0:01:44]}  Bxd5 {[%clk 0:01:21]} 29. Rxd5 {[%clk 0:01:45]}  Rxd5 {[%clk 0:01:21]} 30. Rxd5 {[%clk 0:01:46]}  c4 {[%clk 0:01:21]} 31. Qd2 {[%clk 0:01:44]}  Re7 {[%clk 0:01:19]} 32. Qd4 {[%clk 0:01:44]}  g5 {[%clk 0:01:17]} 33. Rd6 {[%clk 0:01:41]} 1-0


[Site "https://www.chess.com"]

[Event "Titled Tuesday Blitz February 14 Early 2023"]
[White "Tologon tegin, Semetei"]
[Black "Vasquez Schroeder, Rodrigo"]
[WhiteFideId "13800574"]
[BlackFideId "3400042"]
[WhiteElo "2372"]
[BlackElo "2524"]
[Result "0-1"]
[Round "09"]
[TimeControl "180+2"]
[Date "2023.02.14"]
[WhiteClock "0:00:03"]
[BlackClock "0:01:03"]

1. Nf3 {[%clk 0:02:47]}  d5 {[%clk 0:02:59]} 2. g3 {[%clk 0:02:31]}  g6 {[%clk 0:02:57]} 3. Bg2 {[%clk 0:02:27]}  c5 {[%clk 0:02:57]} 4. O-O {[%clk 0:02:27]}  Bg7 {[%clk 0:02:57]} 5. c4 {[%clk 0:02:26]}  d4 {[%clk 0:02:56]} 6. e3 {[%clk 0:02:26]}  Nc6 {[%clk 0:02:55]} 7. exd4 {[%clk 0:02:26]}  Nxd4 {[%clk 0:02:48]} 8. Nxd4 {[%clk 0:02:25]}  Bxd4 {[%clk 0:02:47]} 9. Nc3 {[%clk 0:02:21]}  Nh6 {[%clk 0:02:44]} 10. d3 {[%clk 0:01:50]}  Nf5 {[%clk 0:02:42]} 11. Nb5 {[%clk 0:01:13]}  Bg7 {[%clk 0:02:36]} 12. Bf4 {[%clk 0:01:12]}  e5 {[%clk 0:02:27]} 13. Re1 {[%clk 0:00:48]}  f6 {[%clk 0:02:23]} 14. Bd5 {[%clk 0:00:42]}  Ne7 {[%clk 0:02:22]} 15. Be3 {[%clk 0:00:41]}  Nxd5 {[%clk 0:02:05]} 16. cxd5 {[%clk 0:00:42]}  a6 {[%clk 0:01:56]} 17. Nc3 {[%clk 0:00:39]}  b6 {[%clk 0:01:52]} 18. b4 {[%clk 0:00:36]}  cxb4 {[%clk 0:01:48]} 19. Qa4+ {[%clk 0:00:36]}  Bd7 {[%clk 0:01:43]} 20. Qxb4 {[%clk 0:00:35]}  Rb8 {[%clk 0:01:43]} 21. Rab1 {[%clk 0:00:32]}  b5 {[%clk 0:01:39]} 22. Bc5 {[%clk 0:00:32]}  a5 {[%clk 0:01:34]} 23. Qb2 {[%clk 0:00:24]}  Kf7 {[%clk 0:01:30]} 24. Ne4 {[%clk 0:00:17]}  h6 {[%clk 0:01:27]} 25. d4 {[%clk 0:00:17]}  exd4 {[%clk 0:01:20]} 26. Bxd4 {[%clk 0:00:18]}  Rf8 {[%clk 0:01:20]} 27. Rbc1 {[%clk 0:00:16]}  Kg8 {[%clk 0:01:20]} 28. d6 {[%clk 0:00:16]}  Rc8 {[%clk 0:01:17]} 29. Rc5 {[%clk 0:00:15]}  Bc6 {[%clk 0:01:15]} 30. Qc2 {[%clk 0:00:12]}  Qd7 {[%clk 0:01:15]} 31. Qc3 {[%clk 0:00:07]}  Bxe4 {[%clk 0:01:13]} 32. Rxe4 {[%clk 0:00:08]}  Rxc5 {[%clk 0:01:10]} 33. Qxc5 {[%clk 0:00:05]}  Rd8 {[%clk 0:01:08]} 34. Qd5+ {[%clk 0:00:05]}  Kh7 {[%clk 0:01:06]} 35. Bc5 {[%clk 0:00:05]}  Bf8 {[%clk 0:01:04]} 36. Qe6 {[%clk 0:00:04]}  Qxe6 {[%clk 0:01:04]} 37. Rxe6 {[%clk 0:00:05]}  Kg7 {[%clk 0:01:05]} 38. f4 {[%clk 0:00:03]}  Kf7 {[%clk 0:01:05]} 39. Re2 {[%clk 0:00:03]}  Bxd6 {[%clk 0:01:05]} 40. Bxd6 {[%clk 0:00:03]}  Rxd6 {[%clk 0:01:06]} 41. Rc2 {[%clk 0:00:04]}  Ke6 {[%clk 0:01:05]} 42. Kf2 {[%clk 0:00:04]}  Kd5 {[%clk 0:01:05]} 43. Ke3 {[%clk 0:00:05]}  b4 {[%clk 0:01:05]} 44. Kd3 {[%clk 0:00:06]}  a4 {[%clk 0:01:05]} 45. Rc8 {[%clk 0:00:05]}  Rc6 {[%clk 0:01:04]} 46. Rb8 {[%clk 0:00:05]}  Kc5 {[%clk 0:01:04]} 47. Kc2 {[%clk 0:00:04]}  Kc4 {[%clk 0:01:04]} 48. Ra8 {[%clk 0:00:04]}  a3 {[%clk 0:01:04]} 49. Rb8 {[%clk 0:00:03]}  g5 {[%clk 0:01:03]} 50. f5 {[%clk 0:00:03]}  g4 {[%clk 0:01:03]} 51. Rg8 {[%clk 0:00:02]}  h5 {[%clk 0:01:04]} 52. Rh8 {[%clk 0:00:03]}  Rc5 {[%clk 0:01:04]} 53. Rxh5 {[%clk 0:00:03]}  Kb5+ {[%clk 0:01:03]} 54. Kd2 {[%clk 0:00:02]}  b3 {[%clk 0:01:03]} 55. axb3 {[%clk 0:00:03]}  a2 {[%clk 0:01:03]} 0-1


[Site "https://www.chess.com"]